Workbook

Sheet Sheet1
A1: Timeline
B2: Period | G2: 0 | H2: 1 | I2: 2 | J2: 3 | K2: 4 | L2: 5 | M2: 6 | N2: 7 | O2: 8 | P2: 9 | Q2: 10 | R2: 11 | S2: 12 | T2: 13 | U2: 14 | V2: 15 | W2: 16 | X2: 17 | Y2: 18 | Z2: 19 | AA2: 20 | AB2: 21 | AC2: 22 | AD2: 23 | AE2: 24 | AF2: 25 | AG2: 26 | AH2: 27 | AI2: 28 | AJ2: 29 | AK2: 30 | AL2: 31 | AM2: 32 | AN2: 33 | AO2: 34 | AP2: 35 | AQ2: 36 | AR2: 37 | AS2: 38 | AT2: 39 | AU2: 40
B3: Switch | E3: =E7 -> 20 | H3: =H2<=$E$3 -> TRUE | I3: =I2<=$E$3 -> TRUE | J3: TRUE | K3: TRUE | L3: TRUE | M3: TRUE | N3: TRUE | O3: TRUE | P3: TRUE | Q3: TRUE | R3: TRUE | S3: TRUE | T3: TRUE | U3: TRUE | V3: TRUE | W3: TRUE | X3: TRUE | Y3: TRUE | Z3: TRUE | AA3: TRUE | AB3: FALSE | AC3: FALSE | AD3: FALSE | AE3: FALSE | AF3: FALSE | AG3: FALSE | AH3: FALSE | AI3: FALSE | AJ3: FALSE | AK3: FALSE | AL3: FALSE | AM3: FALSE | AN3: FALSE | AO3: FALSE | AP3: FALSE | AQ3: FALSE | AR3: FALSE | AS3: FALSE | AT3: FALSE | AU3: FALSE
A5: Assumptions
B6: Operating
C7: Life | E7: 20
C8: CFADS | E8: 91
C9: Growth | E9: 0.02
C10: Capital Expenditures | E10: 1300
B12: Financing
C13: Target DSCR | E13: 1.7 | F13: dscr
C14: Interest Rate | E14: 0.04
C15: Tenure | E15: 20 | F15: tenure
A17: Opeating Analysis
B18: CFADS | E18: =E8 -> 91 | F18: =E9 -> 0.02 | H18: =$E$18 -> 91 | I18: =H18*(1+$F$18)*I3 -> 92.82 | J18: =I18*(1+$F$18)*J3 -> 94.6764 | K18: 96.569928 | L18: 98.50132656 | M18: 100.4713531 | N18: 102.4807802 | O18: 104.5303958 | P18: 106.6210037 | Q18: 108.7534237 | R18: 110.9284922 | S18: 113.1470621 | T18: 115.4100033 | U18: 117.7182034 | V18: 120.0725674 | W18: 122.4740188 | X18: 124.9234992 | Y18: 127.4219691 | Z18: 129.9704085 | AA18: 132.5698167 | AB18: 0 | AC18: 0 | AD18: 0 | AE18: 0 | AF18: 0 | AG18: 0 | AH18: 0 | AI18: 0 | AJ18: 0 | AK18: 0 | AL18: 0 | AM18: 0 | AN18: 0 | AO18: 0 | AP18: 0 | AQ18: 0 | AR18: 0 | AS18: 0 | AT18: 0 | AU18: 0
B19: Cap Exp | E19: =E10 -> 1300 | G19: =E19 -> 1300
B20: Free Cash Flow | G20: =G18-G19 -> -1300 | H20: =H18-H19 -> 91 | I20: 92.82 | J20: 94.6764 | K20: 96.569928 | L20: 98.50132656 | M20: 100.4713531 | N20: 102.4807802 | O20: 104.5303958 | P20: 106.6210037 | Q20: 108.7534237 | R20: 110.9284922 | S20: 113.1470621 | T20: 115.4100033 | U20: 117.7182034 | V20: 120.0725674 | W20: 122.4740188 | X20: 124.9234992 | Y20: 127.4219691 | Z20: 129.9704085 | AA20: 132.5698167 | AB20: 0 | AC20: 0 | AD20: 0 | AE20: 0 | AF20: 0 | AG20: 0 | AH20: 0 | AI20: 0 | AJ20: 0 | AK20: 0 | AL20: 0 | AM20: 0 | AN20: 0 | AO20: 0 | AP20: 0 | AQ20: 0 | AR20: 0 | AS20: 0 | AT20: 0 | AU20: 0
B21: Project IRR | E21: =IRR(20:20) -> 0.05290432368
A23: Financing
B24: Opening Balance | H24: =G26 -> 594.6880858 | I24: =H26 -> 564.9536815 | J24: 535.2192772 | K24: 505.4848729 | L24: 475.7504687 | M24: 446.0160644 | N24: 416.2816601 | O24: 386.5472558 | P24: 356.8128515 | Q24: 327.0784472 | R24: 297.3440429 | S24: 267.6096386 | T24: 237.8752343 | U24: 208.14083 | V24: 178.4064257 | W24: 148.6720215 | X24: 118.9376172 | Y24: 89.20321287 | Z24: 59.46880858 | AA24: 29.73440429 | AB24: 3.126388037e-13 | AC24: 0 | AD24: 0 | AE24: 0 | AF24: 0 | AG24: 0 | AH24: 0 | AI24: 0 | AJ24: 0 | AK24: 0 | AL24: 0 | AM24: 0 | AN24: 0 | AO24: 0 | AP24: 0 | AQ24: 0 | AR24: 0 | AS24: 0 | AT24: 0 | AU24: 0
B25: Less Repayment | E25: =E15 -> 20 | H25: =MIN($E$26/$E$25,H24) -> 29.73440429 | I25: =MIN($E$26/$E$25,I24) -> 29.73440429 | J25: 29.73440429 | K25: 29.73440429 | L25: 29.73440429 | M25: 29.73440429 | N25: 29.73440429 | O25: 29.73440429 | P25: 29.73440429 | Q25: 29.73440429 | R25: 29.73440429 | S25: 29.73440429 | T25: 29.73440429 | U25: 29.73440429 | V25: 29.73440429 | W25: 29.73440429 | X25: 29.73440429 | Y25: 29.73440429 | Z25: 29.73440429 | AA25: 29.73440429 | AB25: 3.126388037e-13 | AC25: 0 | AD25: 0 | AE25: 0 | AF25: 0 | AG25: 0 | AH25: 0 | AI25: 0 | AJ25: 0 | AK25: 0 | AL25: 0 | AM25: 0 | AN25: 0 | AO25: 0 | AP25: 0 | AQ25: 0 | AR25: 0 | AS25: 0 | AT25: 0 | AU25: 0
B26: Closing Balance | E26: 594.6880858 | F26: debt | G26: =E26 -> 594.6880858 | H26: =H24-H25 -> 564.9536815 | I26: =I24-I25 -> 535.2192772 | J26: 505.4848729 | K26: 475.7504687 | L26: 446.0160644 | M26: 416.2816601 | N26: 386.5472558 | O26: 356.8128515 | P26: 327.0784472 | Q26: 297.3440429 | R26: 267.6096386 | S26: 237.8752343 | T26: 208.14083 | U26: 178.4064257 | V26: 148.6720215 | W26: 118.9376172 | X26: 89.20321287 | Y26: 59.46880858 | Z26: 29.73440429 | AA26: 3.126388037e-13 | AB26: 0 | AC26: 0 | AD26: 0 | AE26: 0 | AF26: 0 | AG26: 0 | AH26: 0 | AI26: 0 | AJ26: 0 | AK26: 0 | AL26: 0 | AM26: 0 | AN26: 0 | AO26: 0 | AP26: 0 | AQ26: 0 | AR26: 0 | AS26: 0 | AT26: 0 | AU26: 0
B27: Interest | E27: =E14 -> 0.04 | H27: =$E$27*H24 -> 23.78752343 | I27: =$E$27*I24 -> 22.59814726 | J27: 21.40877109 | K27: 20.21939492 | L27: 19.03001875 | M27: 17.84064257 | N27: 16.6512664 | O27: 15.46189023 | P27: 14.27251406 | Q27: 13.08313789 | R27: 11.89376172 | S27: 10.70438554 | T27: 9.515009373 | U27: 8.325633201 | V27: 7.13625703 | W27: 5.946880858 | X27: 4.757504687 | Y27: 3.568128515 | Z27: 2.378752343 | AA27: 1.189376172 | AB27: 1.250555215e-14 | AC27: 0 | AD27: 0 | AE27: 0 | AF27: 0 | AG27: 0 | AH27: 0 | AI27: 0 | AJ27: 0 | AK27: 0 | AL27: 0 | AM27: 0 | AN27: 0 | AO27: 0 | AP27: 0 | AQ27: 0 | AR27: 0 | AS27: 0 | AT27: 0 | AU27: 0
B28: Debt Service | H28: =H25+H27 -> 53.52192772 | I28: =I25+I27 -> 52.33255155 | J28: 51.14317538 | K28: 49.95379921 | L28: 48.76442304 | M28: 47.57504687 | N28: 46.38567069 | O28: 45.19629452 | P28: 44.00691835 | Q28: 42.81754218 | R28: 41.62816601 | S28: 40.43878984 | T28: 39.24941366 | U28: 38.06003749 | V28: 36.87066132 | W28: 35.68128515 | X28: 34.49190898 | Y28: 33.30253281 | Z28: 32.11315663 | AA28: 30.92378046 | AB28: 3.251443559e-13 | AC28: 0 | AD28: 0 | AE28: 0 | AF28: 0 | AG28: 0 | AH28: 0 | AI28: 0 | AJ28: 0 | AK28: 0 | AL28: 0 | AM28: 0 | AN28: 0 | AO28: 0 | AP28: 0 | AQ28: 0 | AR28: 0 | AS28: 0 | AT28: 0 | AU28: 0
B30: DSCR | H30: =IF(H28>0.1,H20/H28) -> 1.700237713 | I30: =IF(I28>0.1,I20/I28) -> 1.773657069 | J30: 1.851203006 | K30: 1.933184853 | L30: =IF(L28>0.1,L20/L28) -> 2.019942418 | M30: 2.111849798 | N30: 2.209319788 | O30: 2.312808978 | P30: 2.422823676 | Q30: 2.53992682 | R30: 2.664746081 | S30: 2.797983385 | T30: 2.940426175 | U30: 3.092960783 | V30: 3.256588386 | W30: 3.432444159 | X30: 3.621820388 | Y30: 3.826194539 | Z30: 4.047263557 | AA30: 4.28698609 | AB30: FALSE | AC30: FALSE | AD30: FALSE | AE30: FALSE | AF30: FALSE | AG30: FALSE | AH30: FALSE | AI30: FALSE | AJ30: FALSE | AK30: FALSE | AL30: FALSE | AM30: FALSE | AN30: FALSE | AO30: FALSE | AP30: FALSE | AQ30: FALSE | AR30: FALSE | AS30: FALSE | AT30: FALSE | AU30: FALSE
B31: Min DSCR | E31: =MIN(30:30) -> 1.700237713
B32: Target DSCR | E32: =E13 -> 1.7
B33: Difference | E33: =E31-E32 -> 0.0002377132324 | F33: Dif
B35: Equity Cash Flow | G35: =G20+G26 -> -705.3119142 | H35: =H18-H28 -> 37.47807228 | I35: =I18-I28 -> 40.48744845 | J35: 43.53322462 | K35: 46.61612879 | L35: 49.73690352 | M35: 52.89630623 | N35: 56.09510946 | O35: 59.33410123 | P35: 62.61408532 | Q35: 65.93588157 | R35: 69.30032621 | S35: 72.70827223 | T35: 76.16058964 | U35: 79.65816588 | V35: 83.20190612 | W35: 86.79273364 | X35: 90.43159019 | Y35: 94.11943634 | Z35: 97.8572519 | AA35: 101.6460362 | AB35: -3.251443559e-13 | AC35: 0 | AD35: 0 | AE35: 0 | AF35: 0 | AG35: 0 | AH35: 0 | AI35: 0 | AJ35: 0 | AK35: 0 | AL35: 0 | AM35: 0 | AN35: 0 | AO35: 0 | AP35: 0 | AQ35: 0 | AR35: 0 | AS35: 0 | AT35: 0 | AU35: 0
B36: Equity IRR | E36: =IRR(35:35) -> 0.06079923132 | F36: eqirr
I40: DSCR | J40: Equity IRR
I41: 1.1 | J41: 0.09646303669
I42: 1.2 | J42: 0.09357766082
I43: 1.3 | J43: 0.09136274693
I44: 1.4 | J44: 0.08962651317
I45: 1.5 | J45: 0.08822782199
I46: 1.6 | J46: 0.08707615189
I47: 1.7 | J47: 0.08611090508
H49: CFADS | I49: =E8 -> 91
L51: Tenure
J52: 10 | K52: 12 | L52: 14 | M52: 16 | N52: 18 | O52: 20
I53: 1.1 | J53: 0.05678287041 | K53: 0.05846575605 | L53: 0.06059294399 | M53: 0.06332525757 | N53: 0.06686481844 | O53: 0.07152936589 | Q53: startrow | R53: =ROW(J53) -> 53
I54: 1.2 | J54: 0.05636707672 | K54: 0.05781455531 | L54: 0.05959876201 | M54: 0.06182036228 | N54: 0.06458965635 | O54: 0.06807107757 | Q54: endrow | R54: =ROW(L59) -> 59
H55: DSCR | I55: 1.3 | J55: 0.05603214562 | K55: 0.05730037379 | L55: 0.05883345325 | M55: 0.06069788051 | N55: 0.06295723307 | O55: 0.06570446275 | Q55: startcol | R55: =COLUMN(J53) -> 10
I56: 1.4 | J56: 0.05575640003 | K56: 0.05688396533 | L56: 0.05823145134 | M56: 0.05982791966 | N56: 0.06172748462 | O56: 0.06398054313 | Q56: endcol | R56: =COLUMN(O55) -> 15
I57: 1.5 | J57: 0.0555254038 | K57: 0.05653980004 | L57: 0.05773653325 | M57: 0.05913336217 | N57: 0.06076713883 | O57: 0.0626677776
I58: 1.6 | J58: 0.05532906814 | K58: 0.05625054164 | L58: 0.05732600897 | M58: 0.05856591989 | N58: 0.05999609436 | O58: 0.061634268
I59: 1.7 | J59: 0.05516012809 | K59: 0.05600399918 | L59: 0.05697993844 | M59: 0.05809352478 | N59: 0.05936323265 | O59: 0.06079923132
